Cogmind - Beta 15 @@@ ROGUE MODE // 2025.07.15 @ 07:26:42 Player: cloodskull Result: Self-destructed Performance ------------- Evolutions (1) 500 Regions Visited (3) 600 Robots Destroyed (27) 135 Value Destroyed (524) 524 Prototype IDs (2) 40 Alien Tech Used (0) 0 Bonus (0) 0 TOTAL SCORE: 1799 Bonus ------- None Cogmind --------- Core Integrity 201/400 Matter 300/300 Energy 78/100 System Corruption 0% Temperature Cool (0) Movement Rolling (130) Ox2 Location -9/Materials Parts ------- > --- POWER (1) -------- (None) > --- PROPULSION (3) --- Compact Wheel > --- UTILITY (3) ------ High-capacity Storage Unit Propulsion Shielding > --- WEAPON (2) ------- Small Laser > --- INVENTORY (20) --- Wheel Heat Sink Large Matter Pod (150) Tractor Beam EM Pulse Gun Small Laser Particle Gun Light Assault Rifle Rocket Launcher Rocket Launcher Peak State ------------ > --- POWER ------------ Light Nuclear Core > --- PROPULSION ------- Light Treads Compact Wheel Compact Wheel > --- UTILITY ---------- High-capacity Storage Unit Propulsion Shielding Tractor Beam > --- WEAPON ----------- Light Assault Rifle Light Assault Rifle > --- INVENTORY -------- Wheel Compact Wheel Heat Sink Large Matter Pod Tractor Beam EM Pulse Gun Small Laser Small Laser Particle Gun Light Assault Rifle Rocket Launcher Rocket Launcher [Rating: 12] Favorites ----------- Power Ion Engine Engine Ion Engine Power Core Light Nuclear Core Propulsion Light Treads Treads Light Treads Wheel Compact Wheel Utility Tractor Beam Device Tractor Beam Storage High-capacity Storage Unit Protection Propulsion Shielding Weapon Light Assault Rifle Energy Gun EM Pulse Gun Ballistic Gun Light Assault Rifle Launcher Rocket Launcher Build | -11 -10 -10 -9 ------- Run | Yrd Mat Min Mat Slots Evolved 2 | . . . 2 Power . | . . . . Propulsion 1 | . . . 1 Utility 1 | . . . 1 Weapon . | . . . . Parts Attached 25 | 7 8 5 5 Power 4 | 1 1 1 1 Engine 3 | 1 1 1 . Core 1 | . . . 1 Reactor . | . . . . Propulsion 8 | 2 3 1 2 Treads 2 | 1 1 . . Leg . | . . . . Wheel 6 | 1 2 1 2 Hover . | . . . . Flight . | . . . . Utility 5 | 1 3 . 1 Device 1 | . 1 . . Storage 3 | 1 2 . . Processor . | . . . . Hackware . | . . . . Protection 1 | . . . 1 Artifact . | . . . . Weapon 8 | 3 1 3 1 Energy Gun 2 | 1 . 1 . Energy Cannon . | . . . . Ballistic Gun 4 | 2 1 1 . Ballistic Cannon . | . . . . Launcher 2 | . . 1 1 Special Weapon . | . . . . Impact Weapon . | . . . . Slashing Weapon . | . . . . Piercing Weapon . | . . . . Special Melee Weapon . | . . . . Unidentified Prototypes . | . . . . Parts Lost 15 | . 5 2 8 Power 4 | . 1 1 2 Propulsion 6 | . 2 1 3 Utility 1 | . . . 1 Weapon 4 | . 2 . 2 Highest Loss Streak 8 | . 3 2 8 To Critical Strikes . | . . . . Average Backups 10 | 2 9 12 11 Power 1 | . 1 1 . Propulsion 2 | 1 2 2 1 Utility 3 | . 3 4 3 Weapon 3 | . 1 5 6 Tool/Special . | . . . . Unused Backups 8 | . 1 . 7 Power . | . . . . Propulsion 1 | . . . 1 Utility 3 | . . . 3 Weapon 4 | . 1 . 3 Tool/Special . | . . . . Average Slot Usage (%) 88 | . 84 99 89 Engine 13 | . 13 14 8 Treads 13 | . 13 14 9 Wheel 14 | . 14 13 20 Device 12 | . 12 14 8 Storage 14 | . 15 14 11 Energy Gun 2 | . 1 3 . Ballistic Gun 16 | . 12 24 19 Peak Build Rating 12 | 6 7 9 12 Average Rating 7 | 4 6 7 9 On Entrance 5 | . 6 7 8 Naked Turns . | . . . . Heaviest Build 48 | 12 48 46 48 Greatest Support 32 | 20 20 16 32 Greatest Overweight (x) 4 | . 4 2 1 Average Overweight (x) 2 | . 3 2 1 Largest Inventory Capacity 20 | 8 20 20 20 Average Capacity 18 | 7 18 20 20 Most Carried 14 | 4 14 13 13 Average Carried 10 | 2 9 12 12 Final Capacity 20 | 8 20 20 20 Final Carried 13 | 4 13 13 10 Class Distribution -------------------- 94% | Mutant 5% | Scavenger-Mutant Dominant Class ---------------- Mutant | -10/Materials Mutant | -10/Mines Scavenger-Mutant | -9/Materials Resources | -11 -10 -10 -9 ----------- Run | Yrd Mat Min Mat Matter Collected 772 | 170 444 80 78 Remotely 344 | . 235 80 29 Salvage Created 693 | . 505 102 86 Parts 49 | . 33 5 11 Haulers Intercepted . | . . . . Recyclers Shooed . | . . . . Parts Field Recycled . | . . . . Retrieved Matter . | . . . . Parts Self-Destructed . | . . . . Prevented . | . . . . Kills | -11 -10 -10 -9 ------- Run | Yrd Mat Min Mat Combat Hostiles Destroyed 19 | . 9 5 5 Guns 12 | . 8 3 1 AOE 7 | . 1 2 4 Classes Destroyed 8 | . 7 . 1 Worker 2 | . 1 . 1 Builder 1 | . 1 . . Tunneler 1 | . 1 . . Recycler 2 | . 2 . . Watcher 2 | . 2 . . Swarmer 10 | . 3 3 4 Grunt 8 | . 6 2 . Sentry 1 | . . . 1 Best Kill Streak 5 | . 5 3 5 Combat Bots Only 4 | . 3 3 4 Max Kills in Single Turn 5 | . 3 2 5 Gunslinging . | . . . . Exploded 4 | . 1 2 4 Melee . | . . . . Uniques/NPCs Destroyed . | . . . . Combat | -11 -10 -10 -9 -------- Run | Yrd Mat Min Mat Hostile Shots Fired 152 | . 83 15 54 Missed 50 | . 30 3 17 Hits 102 | . 53 12 37 Melee 9 | . . . 9 Projectile 93 | . 53 12 28 Critical Strikes 3 | . 2 . 1 Damage Taken 1539 | . 774 132 633 Core 383 | . 151 33 199 Absorbed by Shields . | . . . . Redirected to Shielding 38 | . . . 38 Core Remaining (%) 63 | 100 . 26 . Volleys Fired 99 | . 75 8 16 Largest 2 | . 2 2 2 Hottest 60 | . 60 60 53 Shots Fired 117 | . 77 13 27 Gun 115 | . 77 12 26 Cannon . | . . . . Launcher 2 | . . 1 1 Special . | . . . . Kinetic 88 | . 58 8 22 Thermal 8 | . . 4 4 Explosive 2 | . . 1 1 Electromagnetic 19 | . 19 . . Robot Hit Streak 10 | . 8 4 10 Robot Miss Streak 3 | . 3 1 2 Penetration Max . | . . . . Secondary Targets 1 | . . 1 . Max Gunslinging Chain 1 | . . 1 . Shots Hit Robots 77 | . 49 8 20 Core Hits 44 | . 25 8 11 Critical Kills . | . . . . Critical Parts Destroyed 1 | . 1 . . Critical Strikes 2 | . 2 . . Destroy 1 | . 1 . . Corrupt 1 | . 1 . . Melee Attacks . | . . . . Impact . | . . . . Slashing . | . . . . Piercing . | . . . . Sneak Attacks . | . . . . Combat Hostiles . | . . . . Follow-up Attacks . | . . . . Damage Inflicted 1388 | . 786 219 383 Guns 860 | . 607 80 173 Cannons . | . . . . Explosions 528 | . 179 139 210 Melee . | . . . . Ramming . | . . . . Kinetic 642 | . 443 58 141 Thermal 233 | . 179 22 32 Explosive 349 | . . 139 210 Electromagnetic 164 | . 164 . . Impact . | . . . . Slashing . | . . . . Piercing . | . . . . Highest Corruption . | . . . . Average Corruption . | . . . . Corruption Purged . | . . . . Corruption Blocked . | . . . . Overload Shots . | . . . . Overflow Damage . | . . . . Projectiles . | . . . . Explosions . | . . . . Melee . | . . . . Knockbacks . | . . . . Impact . | . . . . Kinetic . | . . . . Secondary . | . . . . Self-Inflicted Damage . | . . . . Shots . | . . . . Rammed . | . . . . Targets Rammed . | . . . . Kicked . | . . . . Crushed . | . . . . Highest Temperature 78 | . 78 50 23 Average Temperature 26 | . 31 26 7 Received Heat Transfer 534 | . 336 57 141 Siege Activations . | . . . . Martial Activations . | . . . . Shielding Activations . | . . . . Robots Disrupted . | . . . . Combat Hostiles . | . . . . Robots Corrupted . | . . . . Combat Hostiles . | . . . . Parts Fried . | . . . . Impact Corruptions . | . . . . Robots Melted . | . . . . Combat Hostiles . | . . . . Parts Melted . | . . . . Heat Transferred 275 | . 150 50 75 Parts Sabotaged . | . . . . Parts Stolen . | . . . . Parts Stripped . | . . . . Power Chain Reactions 1 | . 1 . . Alert | -11 -10 -10 -9 ------- Run | Yrd Mat Min Mat Maximum Alert Level . | . . . . Low Security (%) 100 | 100 100 100 100 Level 1 . | . . . . Level 2 . | . . . . Level 3 . | . . . . Level 4 . | . . . . Level 5 . | . . . . High Security . | . . . . Max Security . | . . . . Peak Influence 116 | . 68 103 116 Initial 3 | . . 3 . Average 19 | . 11 32 56 Influence Increases 546 | . 267 133 146 Destroy 0b10 Robot/C 380 | . 180 100 100 Destroy 0b10 Robot/NC 40 | . 35 . 5 Destroy Leader 84 | . 44 20 20 Successful Hack 5 | . 5 . . Disable Machine 15 | . . . 15 Destroy Structure 22 | . 3 13 6 Influence Decreases 520 | . 259 141 120 Entered New Map 5 | . . 5 . Time Decay 392 | . 219 133 40 Lost Part 123 | . 40 3 80 Squads Dispatched 2 | . 2 . . Investigation 1 | . 1 . . Extermination . | . . . . Reinforcement 1 | . 1 . . Assault . | . . . . Garrison . | . . . . Intercept . | . . . . Searches Triggered . | . . . . Construction Impeded . | . . . . Haulers Reinforced . | . . . . Active Scanning Responses . | . . . . Cargo Convoy Interrupts . | . . . . Stealth | -11 -10 -10 -9 --------- Run | Yrd Mat Min Mat Distress Signals 1 | . 1 . . Communications Jammed . | . . . . Distress Signals . | . . . . Times Spotted 31 | . 18 5 8 Peak Tracking Total 5 | . 5 3 4 Tactical Retreats . | . . . . Traps | -11 -10 -10 -9 ------- Run | Yrd Mat Min Mat Traps Triggered 1 | . 1 . . Indirectly . | . . . . Trap Hack Attempts . | . . . . Triggered . | . . . . Disarmed . | . . . . Reprogrammed . | . . . . Reused . | . . . . Traps Extracted . | . . . . Installed . | . . . . Triggered . | . . . . Machines | -11 -10 -10 -9 ---------- Run | Yrd Mat Min Mat Machines Disabled 1 | . . . 1 Max in Single Turn 1 | . . . 1 Machines Repaired . | . . . . Machines Dismantled . | . . . . Machines Sabotaged . | . . . . Overloaded Fab Kills . | . . . . Hacking | -11 -10 -10 -9 --------- Run | Yrd Mat Min Mat Machines Accessed 2 | . 2 . . Terminals 2 | . 2 . . Fabricators . | . . . . Repair Stations . | . . . . Recycling Units . | . . . . Scanalyzers . | . . . . Garrison Access . | . . . . Total Hacks 3 | . 3 . . Successful 1 | . 1 . . Failed 2 | . 2 . . Catastrophic 1 | . 1 . . Database Lockouts . | . . . . Manual . | . . . . Terminals 3 | . 3 . . Fabricators . | . . . . Repair Stations . | . . . . Recycling Units . | . . . . Scanalyzers . | . . . . Garrison Access . | . . . . Terminal Hacks 1 | . 1 . . Prototype ID Bank 1 | . 1 . . Fabricator Hacks . | . . . . Repair Station Hacks . | . . . . Recycling Unit Hacks . | . . . . Scanalyzer . | . . . . Garrison Access Hacks . | . . . . Unauthorized Hacks . | . . . . Terminals . | . . . . Fabricators . | . . . . Repair Stations . | . . . . Recycling Units . | . . . . Scanalyzers . | . . . . Garrison Access . | . . . . Data Cores Recovered . | . . . . Used . | . . . . Hacking Detections 2 | . 2 . . Full Trace Events . | . . . . Feedback Events . | . . . . Feedback Blocked . | . . . . Robot Schematics Acquired . | . . . . Robots Built . | . . . . Authchips . | . . . . Time . | . . . . Total Robot Build Rating . | . . . . Part Schematics Acquired . | . . . . Parts Built . | . . . . Authchips . | . . . . Time . | . . . . Total Part Build Rating . | . . . . Parts Repaired . | . . . . Time . | . . . . Parts Recycled . | . . . . Recycled Matter . | . . . . Retrieved Matter . | . . . . Retrieved Components . | . . . . Parts Scanalyzed . | . . . . Part Schematics Acquired . | . . . . Parts Damaged . | . . . . Bothacking | -11 -10 -10 -9 ------------ Run | Yrd Mat Min Mat Used RIF Installer . | . . . . Robots Hacked . | . . . . Non-combat . | . . . . Combat . | . . . . Robot Hacks Applied . | . . . . Relay Couplers Released . | . . . . Fabnet Peak Effective % . | . . . . Robots Rewired . | . . . . Allies Hacked . | . . . . Hacks Repelled . | . . . . Allies | -11 -10 -10 -9 -------- Run | Yrd Mat Min Mat Total Allies . | . . . . Largest Group . | . . . . Highest-Rated Group . | . . . . Highest-Rated Ally . | . . . . Total Orders . | . . . . Ally Attacks . | . . . . Total Damage . | . . . . Kills . | . . . . Allies Corrupted . | . . . . Allies Melted . | . . . . Intel | -11 -10 -10 -9 ------- Run | Yrd Mat Min Mat Active Infowar (turns) . | . . . . Robot Analysis Total . | . . . . Derelict Logs Recovered 1 | . . 1 . Drone Launches . | . . . . Drone Recoveries . | . . . . Exploration | -11 -10 -10 -9 ------------- Run | Yrd Mat Min Mat Turns Passed 1653 | 58 1078 401 116 Spaces Moved 963 | 34 604 281 44 Core 1 | 1 . . . Treads 43 | 18 25 . . Legs . | . . . . Wheels 919 | 15 579 281 44 Hover . | . . . . Flight . | . . . . Fastest Speed 50 | 50 110 130 115 Average Speed 132 | 130 135 130 115 Slowest Speed 240 | 160 240 130 115 Overloaded Moves . | . . . . Propulsion Burnouts . | . . . . Robots Hopped . | . . . . Potential Cave-ins . | . . . . Cave-ins Triggered . | . . . . Exploration Rate (%) 43 | 4 88 72 9 Regions Visited 3 Branch Regions 1 Pre-discovered Areas 1 | . . 1 . Known Exits Taken . | . . . . Unknown Exits Taken 3 | 1 1 1 . Scrap Searched 1 | . . 1 . Spaces Dug . | . . . . Terrain Destroyed 20 | . 2 13 5 Melee . | . . . . Projectile . | . . . . AOE 20 | . 2 13 5 Terrain Rammed . | . . . . Walls Destroyed . | . . . . Machines Disabled . | . . . . Actions | -11 -10 -10 -9 --------- Run | Yrd Mat Min Mat Total 1224 | 44 792 303 85 Wait 107 | . 85 6 16 Move 960 | 33 603 280 44 Hop . | . . . . Pick Up 22 | 4 14 2 2 Fast Attach 9 | 6 3 . . Attach 12 | . 4 3 5 Detach . | . . . . Swap 10 | 1 3 4 2 Drop 5 | . 5 . . Fire 99 | . 75 8 16 Melee . | . . . . Ram . | . . . . Kick . | . . . . Crush . | . . . . Escape Stasis . | . . . . Rewire . | . . . . Trap . | . . . . Miscellaneous . | . . . . Route ------- -11/Scrapyard -10/Materials (discovered 3 exits: [*Mat x2] / [*Min]) -10/Mines (discovered 2 exits: [*Mat x2]) -9/Materials (discovered 1 exit: Mat) History --------- Turn | Location | Event 28 | -11/Scrapyard | Discovered new exit (range 15) 59 | -11/Scrapyard | Entered Materials 229 | -10/Materials | Discovered new exit (range 16) 333 | -10/Materials | Build established: Mutant 442 | -10/Materials | Discovered new exit (range 6) 512 | -10/Materials | Lost 3 parts (2n1w) 1003 | -10/Materials | Core integrity fell below 50% 1097 | -10/Materials | Discovered new exit (range 16) 1137 | -10/Materials | Entered Mines 1144 | -10/Mines | Met a Derelict bent on vengeance 1178 | -10/Mines | Received a Rocket Launcher from a helpful Derelict 1358 | -10/Mines | Learned location of 1 exit from Materials 1405 | -10/Mines | Learned location of Storage (-8) 1452 | -10/Mines | Discovered new exit (range 11) 1529 | -10/Mines | Discovered new exit (range 8) 1538 | -10/Mines | Entered Materials 1538 | -9/Materials | Evolved 2 slots: Propulsion x1, Utility x1 1539 | -9/Materials | Identified exit to Materials 1654 | -9/Materials | Self-destructed Last Messages --------------- 01619_ U-05 Engineer builds a Wall. 01619_ C-30 ARC bursts open, deploying its payload. 01619_ G-34 Mercenary unfolds itself. 01620_ U-05 Engineer lays Concrete. 01620_ Lgt. Ion Engine destroyed. 01621_ U-05 Engineer lays Concrete. 01629_ Tractor Beam destroyed. 01631_ Y-45 Defender destroyed. 01632_ R-06 Scavenger collects Imp. Ion Engine. 01633_ Lgt. Treads destroyed. 01634_ Acquired 34 matter. 01635_ R-06 Scavenger collects Lgt. Treads. 01637_ Lgt. Nuclear Core destroyed. 01639_ Lgt. Assault Rifle destroyed. 01639_ Com. Wheel destroyed. 01642_ Lgt. Assault Rifle destroyed. 01644_ Com. Wheel destroyed. 01645_ Acquired 5 matter. 01650_ Acquired 10 matter. Map ----- +----------------------------------------------------+ | ?????????????????????????????????????????????????? | | ?????????????????????????????????????????????????? | | ?????????????????????????????????????????????????? | | ?????????????????????????????????????????????????? | | ?????????????????????????????????????????????????? | | ?????????????????????????????????????????????????? | | ?????????????????????????????????????????????????? | | ?????????????????????????????????????????????????? | | ?????????????????????????????????????????????????? | | ?????????????????????????????????????????????????? | | ?????????????????????????????????????????????????? | | ??????????????????????????????????????#??????????? | | ????????????????????????????????????? #??????????? | | ????????????????????????????#?????""" #??????????? | | ????????????????????????????# """"""" #??????????? | | ????????????????????????????# """"""" #??????????? | | ????????????????????????????# """"""" #??????????? | | ????????????????????????????# """"""" #??????????? | | ????????????????????????????# #??????????? | | ????????????????????????????? #????????!?? | | ?????????????????????????????###+####???????? ? | | ??????????????????????######## ######## # | | ??????????????????????# g # | | ??????????????????????# g + | | ??????????????????????# l # | | ??????????????????????# @#### ##########+###? | | ??????????????????????# [#??## ###????????????? | | ??????????????????????# #???# #??????????????? | | ??????????????????????# #???# #??????????????? | | ??????????????????????# #???# #??????????????? | | ??????????????????????# #???# ###########????? | | ??????????????????????# #???# # #????? | | ?????????????????????? ???# # #????? | | ?????????????????????? ???# # #????? | | ????????????????????? ???# # """ #????? | | ????????????????????? ???# # """"" #????? | | ????????????????????## ???# + """"" #????? | | ?????????????????????######???# # """"" #????? | | ??????????????????????????????# # """ #????? | | ??????????????????????????????# #######???#????? | | ??????????????????????????????# #??????????? | | ??????????????????????????????# #??????????? | | ??????????????????????????????# #??????????? | | ??????????????????????????????#########??????????? | | ?????????????????????????????????????????????????? | | ?????????????????????????????????????????????????? | | ?????????????????????????????????????????????????? | | ?????????????????????????????????????????????????? | | ?????????????????????????????????????????????????? | | ?????????????????????????????????????????????????? | +----------------------------------------------------+ Best States ------------- Heat Dissipation 28 Energy Generation 14 Energy Capacity 250 Matter Stores 300 Matter Capacity 300 Sight Range 16 Terrain Scan Density 10 Propulsion Shielding 33 Evasion (%) 40 Recoil Reduction 1 Item Schematics ----------------- None Robot Schematics ------------------ None Fabricated ------------ Nothing Repaired ---------- Nothing Alien Tech Used ----------------- None Achievements -------------- Use The Force Challenges ------------ None Game ------ Seed MiniStorageBoregun Manual? 0 Play Time 00:20:37 Cumulative 8.6 hours Start 2025.07.15 @ 07:01:45 End 2025.07.15 @ 07:26:42 Sessions 1 Manual Loads 0 Difficulty Rogue Special Mode None Game No. 8 Rogue 8 Adventurer 0 Explorer 0 Win Type - Total 0 Types 0/0/0/0/0/0/0/0/0/0 Lore% 3 Gallery% 14 Achievement% 15 Wizard Run 0 Options --------- Layout 1 ASCII 0 Keyboard 0 Movement Numpad Keybinds 0 Fullscreen 1 Font 24/X11 Map View 50x35 Zoom Use 0% Tactical HUD 1 Map Filters NONE Filters NONE Steam 1 RUN: f58b9991-35a7-4cfd-a5a5-b7d1be0dafd7